fUSD/lending_fUSD_20251119
["ID","MTS","AMOUNT","RATE_DAILY","PERIOD"]
[394419928,1763555240424,-177.94,0.00020187,2]
[394419929,1763555240619,-177.94,0.00026676,2]
[394419930,1763555240819,-151.0,0.00033,14]
[394419931,1763555240994,-177.94,0.00033165,2]
[394419932,1763555241298,-5589.43650876,0.00038232,2]
[394419986,1763555431871,-276.36128168,0.00022,4]
[394419987,1763555431882,-1023.11758796,0.00022,4]
[394419988,1763555431894,-1601.19786639,0.00022,4]
[394419989,1763555431906,-575.85745434,0.00022,4]
[394419990,1763555431916,-38.71081402,0.00022,4]
[394419991,1763555431926,-14410.58349124,0.00038232,2]
[394419992,1763555431934,-999.0,0.00038235,3]
[394419993,1763555431943,-200.0,0.00038343,2]
[394419994,1763555431952,-168.0,0.00038361,2]
[394419995,1763555431961,-500.0,0.00038361,2]
[394419996,1763555431970,-1000.0,0.00038447,2]
[394419997,1763555431979,-299.99,0.00038447,30]
[394419998,1763555431988,-250.0,0.00038571,2]
[394419999,1763555432001,-168.0,0.00038651,2]
[394420000,1763555432010,-1000.0,0.00038684,120]
[394420001,1763555432019,-1436.93,0.00038779,2]
[394420002,1763555432028,-12421.54,0.00038849,2]
[394420003,1763555432037,-168.0,0.00038889,2]
[394420004,1763555432046,-168.0,0.00038893,2]
[394420005,1763555432055,-582.65586251,0.00039,2]
[394420016,1763555437864,-2090.45809366,0.00039,2]
[394420017,1763555437874,-1202.2,0.00039028,2]
[394420018,1763555437884,-168.0,0.00039098,2]
[394420019,1763555437893,-1944.46,0.00039142,2]
[394420020,1763555437903,-700.6,0.00039288,2]
[394420021,1763555437912,-478.61,0.00039288,2]
[394420022,1763555437921,-478.61,0.00039288,2]
[394420023,1763555437930,-478.61,0.00039288,2]
[394420024,1763555437939,-150.0,0.00039297,4]
[394420025,1763555437948,-151.05152743,0.00039298,2]
[394420026,1763555437957,-3840.63237688,0.00039298,2]
[394420027,1763555437966,-340.66984304,0.00039389,15]
[394420028,1763555437975,-500.0,0.00039389,15]
[394420029,1763555437985,-267.21683407,0.00039389,15]
[394420030,1763555437994,-500.0,0.00039389,15]
[394420031,1763555438003,-352.53789458,0.00039389,15]
[394420032,1763555438013,-406.0554736,0.00039389,7]
[394420033,1763555438022,-500.0,0.00039389,15]
[394420034,1763555438031,-500.0,0.00039389,15]
[394420036,1763555438040,-612.28685711,0.00039389,15]
[394420038,1763555438049,-500.0,0.00039389,15]
[394420040,1763555438058,-612.28685711,0.00039389,15]
[394420042,1763555438067,-500.0,0.00039389,15]
[394420044,1763555438077,-612.28685711,0.00039389,15]
[394420046,1763555438086,-500.0,0.00039389,15]
[394420048,1763555438096,-612.28685711,0.00039389,15]
[394420050,1763555438104,-500.0,0.00039389,15]
[394420052,1763555438114,-612.28685711,0.00039389,15]
[394420054,1763555438124,-500.0,0.00039389,15]
[394420056,1763555438133,-612.28685711,0.00039389,15]
[394420057,1763555438141,-612.28685711,0.00039389,15]
[394420059,1763555438151,-500.0,0.00039389,15]
[394420062,1763555438160,-500.0,0.00039389,15]
[394420063,1763555438170,-612.28685711,0.00039389,15]
[394420066,1763555438180,-500.0,0.00039389,15]
[394420067,1763555438190,-612.28685711,0.00039389,15]
[394420069,1763555438199,-500.0,0.00039389,15]
[394420072,1763555438209,-612.28685711,0.00039389,15]
[394420073,1763555438219,-500.0,0.00039389,15]
[394420075,1763555438228,-612.28685711,0.00039389,15]
[394420078,1763555438238,-500.0,0.00039389,15]
[394420080,1763555438247,-612.28685711,0.00039389,15]
[394420082,1763555438256,-500.0,0.00039389,15]
[394420084,1763555438266,-612.28685711,0.00039389,15]
[394420086,1763555438276,-500.0,0.00039389,15]
[394420088,1763555438285,-612.28685711,0.00039389,15]
[394420090,1763555438296,-500.0,0.00039389,15]
[394420092,1763555438312,-612.28685711,0.00039389,15]
[394420094,1763555438321,-500.0,0.00039389,15]
[394420096,1763555438331,-612.28685711,0.00039389,15]
[394420099,1763555438344,-500.0,0.00039389,15]
[394420101,1763555438354,-612.28685711,0.00039389,15]
[394420103,1763555438364,-250.0,0.00039389,15]
[394420105,1763555438373,-612.28685711,0.00039389,15]
[394420107,1763555438382,-500.0,0.00039389,15]
[394420108,1763555438391,-500.0,0.00039389,15]
[394420110,1763555438402,-612.28685711,0.00039389,15]
[394420112,1763555438411,-500.0,0.00039389,15]
[394420114,1763555438421,-612.28685711,0.00039389,15]
[394420116,1763555438430,-500.0,0.00039389,15]
[394420118,1763555438439,-612.28685711,0.00039389,15]
[394420120,1763555438448,-612.28685711,0.00039389,15]
[394420122,1763555438457,-612.28685711,0.00039389,15]
[394420124,1763555438467,-612.28685711,0.00039389,15]
[394420126,1763555438476,-612.28685711,0.00039389,15]
[394420128,1763555438486,-612.28685711,0.00039389,15]
[394420130,1763555438495,-612.28685711,0.00039389,15]
[394420132,1763555438504,-612.28685711,0.00039389,15]
[394420134,1763555438513,-612.28685711,0.00039389,15]
[394420136,1763555438522,-612.28685711,0.00039389,15]
[394420138,1763555438532,-612.28685711,0.00039389,15]
[394420140,1763555438541,-612.28685711,0.00039389,15]
[394420142,1763555438551,-612.28685711,0.00039389,15]
[394420144,1763555438560,-612.28685711,0.00039389,15]
[394420146,1763555438569,-612.28685711,0.00039389,15]
[394420148,1763555438578,-612.28685711,0.00039389,15]
[394420150,1763555438587,-612.28685711,0.00039389,15]
[394420152,1763555438596,-612.28685711,0.00039389,15]
[394420154,1763555438606,-612.28685711,0.00039389,15]
[394420156,1763555438615,-612.28685711,0.00039389,15]
[394420158,1763555438624,-612.28685711,0.00039389,15]
[394420160,1763555438633,-612.28685711,0.00039389,15]
[394420162,1763555438643,-612.28685711,0.00039389,15]
[394420164,1763555438657,-612.28685711,0.00039389,15]
[394420166,1763555438667,-612.28685711,0.00039389,15]
[394420168,1763555438676,-612.28685711,0.00039389,15]
[394420170,1763555438685,-612.28685711,0.00039389,15]
[394420172,1763555438694,-612.28685711,0.00039389,15]
[394420174,1763555438704,-612.28685711,0.00039389,15]
[394420176,1763555438713,-612.28685711,0.00039389,15]
[394420178,1763555438724,-612.28685711,0.00039389,15]
[394420181,1763555438735,-612.28685711,0.00039389,15]
[394420183,1763555438745,-612.28685711,0.00039389,15]
[394420185,1763555438755,-760000.0,0.0003939,2]
[394420186,1763555438764,-16347.0158,0.00039399,2]
[394420189,1763555438773,-830.886,0.00039399,54]
[394420191,1763555438783,-151.962,0.00039399,54]
[394420192,1763555438792,-5328.3868,0.000394,2]
[394420195,1763555438802,-1000.0,0.000394,2]
[394420196,1763555438811,-1647.43397003,0.00039426,2]
[394420198,1763555438821,-649.70851277,0.00039473,5]
[394420201,1763555438830,-500.0,0.00039473,5]
[394420203,1763555438840,-502.12546561,0.00039473,5]
[394420205,1763555438849,-171.69129294,0.00039473,5]
[394420207,1763555438859,-502.08059121,0.00039473,5]
[394420209,1763555438868,-325.05031776,0.00039473,5]
[394420210,1763555438878,-151.0,0.00039476,2]
[394420213,1763555438887,-151.0,0.00039476,2]
[394420214,1763555438896,-151.0,0.00039476,2]
[394420217,1763555438906,-206.35089017,0.00039476,2]
[394420219,1763555438915,-550.38,0.00039478,2]
[394420220,1763555438925,-14234.8119474,0.0003949,4]
[394420223,1763555438935,-150.46,0.0003949,2]
[394420225,1763555438944,-220.42241092,0.0003949,2]
[394420226,1763555438954,-500.0,0.00039499,120]
[394420229,1763555438963,-500.0,0.00039499,120]
[394420231,1763555438972,-500.0,0.00039499,7]
[394420233,1763555438981,-230.7,0.00039499,7]
[394420235,1763555438991,-500.0,0.00039499,120]
[394420237,1763555439000,-150.0,0.00039499,60]
[394420238,1763555439009,-500.0,0.00039499,60]
[394420240,1763555439019,-216.86975788,0.00039499,60]
[394420242,1763555439029,-271.56,0.00039499,30]
[394420244,1763555439039,-500.0,0.00039499,120]
[394420246,1763555439047,-500.0,0.00039499,120]
[394420248,1763555439056,-500.0,0.00039499,120]
[394420250,1763555439066,-500.0,0.00039499,120]
[394420252,1763555439076,-450.97471094,0.00039499,30]
[394420254,1763555439086,-500.0,0.00039499,2]
[394420256,1763555439095,-150.0,0.00039499,60]
[394420259,1763555439105,-150.0,0.00039499,2]
[394420261,1763555439121,-158.86102011,0.00039499,60]
[394420263,1763555439132,-150.0,0.00039499,120]
[394420265,1763555439142,-202.03729613,0.00039499,60]
[394420267,1763555439154,-500.0,0.00039499,120]
[394420269,1763555439164,-500.0,0.00039499,60]
[394420271,1763555439173,-150.0,0.00039499,60]
[394420273,1763555439183,-150.0,0.00039499,2]
[394420275,1763555439193,-150.0,0.00039499,60]
[394420292,1763555439344,-150.0,0.00039499,60]
[394420294,1763555439354,-150.0,0.00039499,2]
[394420296,1763555439364,-150.0,0.00039499,60]
[394420299,1763555439376,-275000.00925403,0.000395,2]
[394420301,1763555439386,-150.0,0.00039526,60]
[394420303,1763555439395,-500.0,0.00039526,60]
[394420304,1763555439404,-150.0,0.00039526,60]
[394420305,1763555439414,-258.30079919,0.00039526,2]
[394420306,1763555439424,-170.0,0.00039526,120]
[394420307,1763555439434,-500.0,0.00039526,60]
[394420308,1763555439444,-150.0,0.00039526,60]
[394420309,1763555439454,-150.0,0.00039526,60]
[394420310,1763555439464,-150.0,0.00039554,60]
[394420311,1763555439474,-500.0,0.00039554,60]
[394420312,1763555439484,-250.0,0.00039554,60]
[394420313,1763555439493,-500.0,0.00039554,60]
[394420315,1763555439502,-204.29749888,0.00039554,60]
[394420317,1763555439512,-200.0,0.00039554,60]
[394420319,1763555439521,-153.07035415,0.00039578,2]
[394420321,1763555439531,-1628.23050312,0.00039578,2]
[394420323,1763555439540,-153.77768751,0.00039581,60]
[394420325,1763555439549,-500.0,0.00039581,60]
[394420327,1763555439559,-2695.75406,0.000396,2]
[394420329,1763555439568,-3840.63237682,0.00039605,2]
[394420331,1763555439577,-430.94387888,0.00039609,60]
[394420333,1763555439586,-948.98746316,0.00039638,4]
[394420335,1763555439596,-2846.96238948,0.00039638,4]
[394420337,1763555439608,-500.0,0.00039648,2]
[394420339,1763555439618,-177.94,0.00039654,2]
[394420341,1763555439628,-4025.31403648,0.00039657,4]
[394420343,1763555439637,-4025.31403648,0.00039657,4]
[394420345,1763555439652,-627.09070998,0.00039658,120]
[394420348,1763555439663,-197240.387788,0.00039658,4]
[394420350,1763555439672,-4025.31403648,0.00039667,4]
[394420352,1763555439681,-379.37,0.00039667,120]
[394420354,1763555439690,-500.0,0.00039667,7]
[394420356,1763555439700,-500.0,0.00039667,120]
[394420357,1763555439709,-517.72064468,0.00039667,120]
[394420359,1763555439719,-500.0,0.00039667,120]
[394420361,1763555439728,-500.0,0.00039667,120]
[394420363,1763555439737,-500.0,0.00039667,120]
[394420365,1763555439746,-552.70690128,0.00039667,120]
[394420367,1763555439755,-500.0,0.00039667,120]
[394420369,1763555439764,-500.0,0.00039667,120]
[394420371,1763555439774,-500.0,0.00039667,2]
[394420373,1763555439784,-500.0,0.00039667,2]
[394420375,1763555439793,-177.39,0.00039671,2]
[394420377,1763555439802,-150.0,0.00039671,2]
[394420379,1763555439811,-500.91389583,0.00039673,5]
[394420381,1763555439820,-462.94013652,0.00039673,5]
[394420383,1763555439830,-563.36494156,0.00039673,5]
[394420385,1763555439839,-500.0,0.00039677,120]
[394420387,1763555439847,-500.0,0.00039677,120]
[394420389,1763555439856,-500.0,0.00039677,120]
[394420391,1763555439866,-500.0,0.00039677,2]
[394420393,1763555439875,-500.0,0.00039677,2]
[394420395,1763555439884,-500.0,0.00039677,2]
[394420398,1763555439893,-2000.0,0.000397,2]
[394420400,1763555439904,-1647.43397001,0.00039719,2]
[394420401,1763555439913,-271.56,0.00039773,30]
[394420404,1763555439923,-1000.0,0.00039779,2]
[394420405,1763555439932,-168.0,0.000398,2]
[394420407,1763555439941,-151.05152738,0.00039851,2]
[394420409,1763555439950,-442.84287479,0.0003986,2]
[394420411,1763555439962,-3840.63237682,0.00039912,15]
[394420414,1763555439971,-219.01993209,0.00039924,2]
[394420415,1763555439981,-900.0,0.0003996,2]
[394420417,1763555439990,-166.7,0.00039965,2]
[394420420,1763555439999,-4675.0227822,0.00039966,2]
[394420421,1763555440009,-500.0,0.00039973,5]
[394420423,1763555440018,-500.0,0.00039973,5]
[394420425,1763555440028,-500.0,0.00039989,4]
[394420428,1763555440041,-150.46,0.0003999,2]
[394420430,1763555440055,-500.0,0.00039998,30]
[394420432,1763555440065,-6156.60641409,0.00039999,2]
[394420434,1763555440074,-8007.24682841,0.00039999,2]
[394420436,1763555440084,-500.0,0.00039999,2]
[394420438,1763555440093,-500.0,0.00039999,2]
[394420440,1763555440103,-60766.56682401,0.0004,2]
[394420447,1763555440158,-31324.39817029,0.0004,2]
[394420453,1763555440208,-67379.50478363,0.0004,2]
[394420650,1763555484553,500.0,0.00042163,120]
[394420651,1763555484780,500.0,0.00042163,120]
[394420652,1763555485036,500.0,0.00042163,120]
[394420653,1763555485270,500.0,0.00042163,120]
[394420654,1763555485503,500.0,0.00042163,120]
[394420655,1763555485738,500.0,0.00042163,120]
[394420656,1763555485995,203.7766089,0.00042163,120]
[394420710,1763556029573,1510.70692807,0.00042163,120]
[394420714,1763556060608,233.84657946,0.000165,2]
[394420716,1763556076495,500.0,0.00042163,120]
[394420717,1763556076728,500.0,0.00042163,120]
[394420718,1763556077054,500.0,0.00042163,120]
[394420719,1763556077305,500.0,0.00042163,120]
[394420720,1763556077533,500.0,0.00042163,120]
[394420721,1763556077764,500.0,0.00042163,120]
[394420722,1763556077996,500.0,0.00042163,120]
[394420723,1763556078265,500.0,0.00042163,120]
[394420724,1763556078508,500.0,0.00042163,120]
[394420725,1763556078735,500.0,0.00042163,120]
[394420726,1763556078966,500.0,0.00042163,120]
[394420727,1763556079192,500.0,0.00042163,120]
[394420728,1763556079416,500.0,0.00042163,120]
[394420729,1763556079678,194.24462386,0.00042163,120]
[394420922,1763556248957,166.72,0.00042163,120]
[394421012,1763556632136,-157.13,0.00019491,2]
[394421013,1763556632147,-193.35,0.00035516,2]
[394421014,1763556632156,-150.0,0.00038013,2]
[394421015,1763556632165,-557.84,0.0003808,2]
[394421016,1763556632174,-150.0,0.00038175,2]
[394421017,1763556632183,-314.70151897,0.00038181,2]
[394421018,1763556632199,-150.0,0.00038206,2]
[394421019,1763556632211,-78.12079819,0.00038206,120]
[394421020,1763556632248,-71.87920181,0.00038206,120]
[394421021,1763556632258,-360.78,0.0003824,2]
[394421022,1763556632267,-500.0,0.00038275,2]
[394421023,1763556632276,-160.41,0.00038281,2]
[394421024,1763556632286,-5000.0,0.00038327,2]
[394421025,1763556632296,-1280.0,0.00038388,5]
[394421026,1763556632306,-200.0,0.00038389,2]
[394421027,1763556632316,-299.99,0.00038389,30]
[394421028,1763556632325,-400.0,0.00038466,5]
[394421029,1763556632334,-355.0,0.00038616,5]
[394421030,1763556632344,-6327.17,0.0003862,2]
[394421031,1763556632354,-168.0,0.00038765,2]
[394421032,1763556632363,-162.0,0.00038842,120]
[394421033,1763556632373,-1209.94,0.00038875,2]
[394421034,1763556632382,-1209.94,0.00038875,2]
[394421035,1763556632392,-1746.3936,0.00038888,30]
[394421036,1763556632401,-157.13,0.00038982,2]
[394421038,1763556632411,-1000.0,0.00039,21]
[394421040,1763556632420,-1000.0,0.00039,21]
[394421042,1763556632430,-500.0,0.00039,20]
[394421043,1763556632439,-500.0,0.00039073,2]
[394421044,1763556632448,-500.0,0.00039073,5]
[394421045,1763556632459,-171.69129294,0.00039073,5]
[394421046,1763556632469,-500.0,0.00039073,5]
[394421047,1763556632478,-501.55635846,0.00039073,5]
[394421048,1763556632488,-350.17657993,0.00039073,5]
[394421049,1763556632497,-362.55630464,0.00039073,5]
[394421050,1763556632507,-172.06266027,0.00039073,14]
[394421051,1763556632516,-3547.27531983,0.00039089,4]
[394421052,1763556632527,-2811.74318312,0.00039089,4]
[394421094,1763556638219,-11671.74329725,0.00039089,4]
[394421095,1763556638228,-16146.8266352,0.00039089,4]
[394421096,1763556638237,-151.0,0.00039096,14]
[394421097,1763556638247,-500.0,0.00039098,15]
[394421098,1763556638256,-267.21683407,0.00039098,15]
[394421099,1763556638265,-340.66984304,0.00039098,15]
[394421100,1763556638274,-500.0,0.00039098,15]
[394421101,1763556638284,-352.53789458,0.00039098,15]
[394421103,1763556638293,-500.0,0.00039098,15]
[394421105,1763556638302,-600.04111997,0.00039098,15]
[394421107,1763556638311,-500.0,0.00039098,15]
[394421109,1763556638321,-600.04111997,0.00039098,15]
[394421111,1763556638329,-500.0,0.00039098,15]
[394421136,1763556638549,-406.0554736,0.00039098,7]
[394421139,1763556638564,-600.04111997,0.00039098,15]
[394421141,1763556638574,-500.0,0.00039098,15]
[394421143,1763556638584,-500.0,0.00039098,15]
[394421145,1763556638594,-600.04111997,0.00039098,15]
[394421147,1763556638603,-600.04111997,0.00039098,15]
[394421149,1763556638613,-500.0,0.00039098,15]
[394421151,1763556638622,-600.04111997,0.00039098,15]
[394421153,1763556638631,-500.0,0.00039098,15]
[394421155,1763556638643,-600.04111997,0.00039098,15]
[394421157,1763556638653,-500.0,0.00039098,15]
[394421159,1763556638663,-600.04111997,0.00039098,15]
[394421161,1763556638674,-500.0,0.00039098,15]
[394421163,1763556638683,-600.04111997,0.00039098,15]
[394421165,1763556638692,-500.0,0.00039098,15]
[394421167,1763556638702,-600.04111997,0.00039098,15]
[394421169,1763556638711,-600.04111997,0.00039098,15]
[394421171,1763556638720,-600.04111997,0.00039098,15]
[394421173,1763556638729,-550.0,0.00039098,15]
[394421175,1763556638739,-600.04111997,0.00039098,15]
[394421177,1763556638748,-600.04111997,0.00039098,15]
[394421179,1763556638757,-500.0,0.00039098,15]
[394421181,1763556638767,-600.04111997,0.00039098,15]
[394421183,1763556638776,-500.0,0.00039098,15]
[394421185,1763556638785,-600.04111997,0.00039098,15]
[394421187,1763556638794,-500.0,0.00039098,15]
[394421189,1763556638804,-600.04111997,0.00039098,15]
[394421191,1763556638813,-500.0,0.00039098,15]
[394421193,1763556638823,-600.04111997,0.00039098,15]
[394421196,1763556638836,-500.0,0.00039098,15]
[394421198,1763556638845,-600.04111997,0.00039098,15]
[394421200,1763556638855,-500.0,0.00039098,15]
[394421202,1763556638864,-600.04111997,0.00039098,15]
[394421203,1763556638874,-500.0,0.00039098,15]
[394421204,1763556638884,-600.04111997,0.00039098,15]
[394421205,1763556638893,-500.0,0.00039098,15]
[394421206,1763556638904,-600.04111997,0.00039098,15]
[394421207,1763556638915,-500.0,0.00039098,15]
[394421208,1763556638927,-600.04111997,0.00039098,15]
[394421209,1763556638937,-500.0,0.00039098,15]
[394421210,1763556638946,-600.04111997,0.00039098,15]
[394421211,1763556638956,-500.0,0.00039098,15]
[394421213,1763556638966,-600.04111997,0.00039098,15]
[394421214,1763556638976,-600.04111997,0.00039098,15]
[394421216,1763556638986,-500.0,0.00039098,15]
[394421218,1763556639001,-600.04111997,0.00039098,15]
[394421220,1763556639010,-500.0,0.00039098,15]
[394421222,1763556639020,-600.04111997,0.00039098,15]
[394421224,1763556639031,-500.0,0.00039098,15]
[394421226,1763556639040,-600.04111997,0.00039098,15]
[394421228,1763556639051,-500.0,0.00039098,15]
[394421230,1763556639061,-600.04111997,0.00039098,15]
[394421232,1763556639071,-600.04111997,0.00039098,15]
[394421234,1763556639081,-600.04111997,0.00039098,15]
[394421236,1763556639091,-600.04111997,0.00039098,15]
[394421238,1763556639101,-600.04111997,0.00039098,15]
[394421240,1763556639110,-600.04111997,0.00039098,15]
[394421242,1763556639120,-600.04111997,0.00039098,15]
[394421244,1763556639129,-600.04111997,0.00039098,15]
[394421246,1763556639138,-600.04111997,0.00039098,15]
[394421248,1763556639147,-600.04111997,0.00039098,15]
[394421250,1763556639157,-600.04111997,0.00039098,15]
[394421252,1763556639166,-600.04111997,0.00039098,15]
[394421254,1763556639177,-600.04111997,0.00039098,15]
[394421256,1763556639187,-600.04111997,0.00039098,15]
[394421258,1763556639197,-600.04111997,0.00039098,15]
[394421259,1763556639206,-600.04111997,0.00039098,15]
[394421262,1763556639216,-600.04111997,0.00039098,15]
[394421264,1763556639229,-600.04111997,0.00039098,15]
[394421266,1763556639239,-600.04111997,0.00039098,15]
[394421268,1763556639248,-600.04111997,0.00039098,15]
[394421270,1763556639258,-619.60443174,0.00039098,15]
[394421272,1763556639267,-619.60443174,0.00039098,15]
[394421274,1763556639277,-619.60443174,0.00039098,15]
[394421276,1763556639286,-619.60443174,0.00039098,15]
[394421278,1763556639296,-619.60443174,0.00039098,15]
[394421280,1763556639305,-619.60443174,0.00039098,15]
[394421282,1763556639315,-619.60443174,0.00039098,15]
[394421284,1763556639324,-619.60443174,0.00039098,15]
[394421286,1763556639333,-619.60443174,0.00039098,15]
[394421288,1763556639342,-619.60443174,0.00039098,15]
[394421290,1763556639354,-619.60443174,0.00039098,15]
[394421292,1763556639368,-619.60443174,0.00039098,15]
[394421294,1763556639377,-619.60443174,0.00039098,15]
[394421296,1763556639386,-619.60443174,0.00039098,15]
[394421298,1763556639395,-619.60443174,0.00039098,15]
[394421300,1763556639405,-619.60443174,0.00039098,15]
[394421302,1763556639415,-619.60443174,0.00039098,15]
[394421304,1763556639424,-619.60443174,0.00039098,15]
[394421306,1763556639434,-619.60443174,0.00039098,15]
[394421308,1763556639443,-619.60443174,0.00039098,15]
[394421310,1763556639452,-619.60443174,0.00039098,15]
[394421312,1763556639462,-619.60443174,0.00039098,15]
[394421314,1763556639472,-619.60443174,0.00039098,15]
[394421316,1763556639480,-619.60443174,0.00039098,15]
[394421318,1763556639490,-619.60443174,0.00039098,15]
[394421320,1763556639499,-619.60443174,0.00039098,15]
[394421322,1763556639508,-619.60443174,0.00039098,15]
[394421324,1763556639518,-619.60443174,0.00039098,15]
[394421326,1763556639527,-619.60443174,0.00039098,15]
[394421328,1763556639536,-619.60443174,0.00039098,15]
[394421330,1763556639546,-619.60443174,0.00039098,15]
[394421332,1763556639555,-619.60443174,0.00039098,15]
[394421334,1763556639564,-619.60443174,0.00039098,15]
[394421336,1763556639574,-500.0,0.00039098,15]
[394421338,1763556639583,-629.16622855,0.00039098,15]
[394421340,1763556639593,-629.16622855,0.00039098,15]
[394421342,1763556639602,-629.16622855,0.00039098,15]
[394421344,1763556639611,-629.16622855,0.00039098,15]
[394421347,1763556639624,-629.16622855,0.00039098,15]
[394421349,1763556639633,-629.16622855,0.00039098,15]
[394421351,1763556639642,-629.16622855,0.00039098,15]
[394421353,1763556639651,-629.16622855,0.00039098,15]
[394421355,1763556639660,-629.16622851,0.00039098,15]
[394421357,1763556639669,-500.0,0.00039098,15]
[394421359,1763556639678,-760000.0,0.00039099,2]
[394421361,1763556639688,-502.08059121,0.00039173,5]
[394421363,1763556639697,-1794.09184836,0.00039179,4]
[394421365,1763556639706,-150.0,0.00039188,4]
[394421367,1763556639715,-16347.0158,0.00039189,2]
[394421369,1763556639724,-1000.0,0.00039189,2]
[394421371,1763556639733,-1794.09184836,0.00039189,4]
[394421373,1763556639743,-4264.76891236,0.00039189,2]
[394421375,1763556639752,-1647.43397003,0.00039196,2]
[394421377,1763556639761,-5328.3868,0.00039199,2]
[394421379,1763556639770,-153.07035415,0.00039204,2]
[394421381,1763556639779,-649.70851277,0.00039273,5]
[394421383,1763556639788,-500.0,0.00039273,5]
[394421385,1763556639797,-502.12546561,0.00039273,5]
[394421387,1763556639806,-462.94013652,0.00039273,5]
[394421389,1763556639816,-566.88496045,0.00039273,5]
[394421391,1763556639827,-487.93732962,0.00039273,5]
[394421393,1763556639836,-500.0,0.00039273,5]
[394421395,1763556639846,-563.36494156,0.00039273,5]
[394421397,1763556639856,-1038.608,0.00039275,54]
[394421399,1763556639866,-189.952,0.00039275,54]
[394421401,1763556639875,-151.0,0.00039275,2]
[394421403,1763556639884,-151.0,0.00039275,2]
[394421405,1763556639893,-151.0,0.00039275,2]
[394421407,1763556639902,-206.35089017,0.00039275,2]
[394421409,1763556639911,-5382.27554508,0.00039278,4]
[394421411,1763556639922,-14352.7347869,0.00039279,4]
[394421413,1763556639931,-478.61,0.00039288,2]
[394421415,1763556639940,-478.61,0.00039288,2]
[394421417,1763556639949,-478.61,0.00039288,2]
[394421419,1763556639958,-478.61,0.00039288,2]
[394421421,1763556639967,-478.61,0.00039288,2]
[394421423,1763556639976,-1794.09184836,0.00039288,4]
[394421425,1763556639986,-329.99,0.00039288,30]
[394421427,1763556639999,-500.0,0.00039288,120]
[394421431,1763556640008,-500.0,0.00039288,120]
[394421435,1763556640019,-500.0,0.00039288,7]
[394421437,1763556640028,-230.7,0.00039288,7]
[394421439,1763556640039,-500.0,0.00039288,2]
[394421441,1763556640048,-500.0,0.00039288,2]
[394421443,1763556640057,-500.0,0.00039288,2]
[394421445,1763556640068,-150.0,0.00039288,15]
[394421447,1763556640077,-150.0,0.00039288,2]
[394421449,1763556640087,-150.0,0.00039288,120]
[394421451,1763556640096,-379.37,0.00039296,120]
[394421453,1763556640106,-500.0,0.00039296,7]
[394421455,1763556640115,-500.0,0.00039296,2]
[394421457,1763556640123,-192.48614702,0.00039297,2]
[394421459,1763556640133,-6447.40013926,0.00039298,30]
[394421460,1763556640141,-158.86102011,0.00039298,15]
[394421463,1763556640153,-150.0,0.00039298,15]
[394421464,1763556640162,-500.0,0.00039298,15]
[394421466,1763556640172,-216.86975788,0.00039298,15]
[394421468,1763556640182,-202.03729613,0.00039298,15]
[394421470,1763556640191,-500.0,0.00039298,120]
[394421473,1763556640200,-500.0,0.00039298,2]
[394421474,1763556640210,-500.0,0.00039298,2]
[394421476,1763556640219,-500.0,0.00039298,2]
[394421478,1763556640228,-500.0,0.00039298,15]
[394421481,1763556640238,-150.0,0.00039298,15]
[394421482,1763556640247,-150.0,0.00039298,2]
[394421485,1763556640257,-150.0,0.00039298,15]
[394421486,1763556640266,-150.0,0.00039298,15]
[394421488,1763556640276,-150.0,0.00039298,2]
[394421490,1763556640285,-150.0,0.00039298,15]